Cogmind - Beta 11 X9 @@@ ROGUE MODE // 2022.01.06 @ 11:22:53 // Winter2021/Sauler Player: Yosh Result: Destroyed by B-75 Beast with Magnetic Acceleration Cannon Performance ------------- Evolutions (5) 2500 Regions Visited (12) 2400 Robots Destroyed (188) 940 Value Destroyed (7395) 7395 Prototype IDs (17) 340 Alien Tech Used (0) 0 Bonus (2789) 2789 TOTAL SCORE: 16364 Bonus ------- High Alert Combat Kills 647 Follower Combat Kills 1502 Network Hubs Disabled 200 Built Enhanced Grunts 300 Met R17 at Cetus 500 Friendly Fire -360 Cogmind --------- Core Integrity 0/1000 Matter 300/300 Energy 99/100 System Corruption 9% Temperature Cool (12) Movement Core (50) Location -5/Upper Caves Parts ------- > --- POWER (2) -------- (None) > --- PROPULSION (4) --- (None) > --- UTILITY (7) ------ Improved System Shield > --- WEAPON (4) ------- (None) > --- INVENTORY (5) ---- Micro Fission Core Advanced Energy Well (290) Improved Medium Armor Plating Hypervelocity Coil Gun Great Maul Peak State ------------ > --- POWER ------------ Quantum Reactor > --- PROPULSION ------- Armored Treads Improved Medium Treads Centrium Heavy Treads > --- UTILITY ---------- Advanced Heat Sink Advanced Heat Sink Huge Storage Unit Advanced Energy Well Improved Targeting Computer Advanced Targeting Computer Centrium Medium Armor Plating > --- WEAPON ----------- Improved Spread Laser Plasma Rifle Advanced Variable Charge Gun > --- INVENTORY -------- Fission Core Neutrino Core Improved Treads Armored Treads Armored Treads Improved Heat Sink Advanced Heat Sink Advanced Heat Sink Enhanced Optical Array Particle Charger Advanced Particle Charger Improved Transmission Jammer Hardened Medium Armor Plating Improved Medium Armor Plating Improved Medium Armor Plating Medium Reflective Plating Experimental Thermal Shield System Backup Module Improved Spread Laser Plasma Rifle Plasma Rifle Plasma Rifle Rocket Launcher Rocket Launcher [Rating: 96] Favorites ----------- Power Reinforced Ion Engine Engine Reinforced Ion Engine Power Core Fission Core Reactor Antimatter Reactor Propulsion Light Treads Treads Light Treads Wheel Compact Wheel Hover Unit Linear Gravjet Utility Improved Heat Sink Device Improved Heat Sink Storage Huge Storage Unit Processor Advanced Targeting Computer Hackware Hacking Suite Protection Light Armor Plating Weapon Beamcaster Energy Gun Beamcaster Energy Cannon Particle Cannon Ballistic Gun Light Assault Rifle Launcher Rocket Launcher Impact Weapon Great Maul Build | -11 -10 -10 -9 -8 -7 -6 -6 -6 -6 -6 -5 -5 ------- Run | Scr Mat Min Mat Mat Fac Fac Ext Cet Arc Hub Fac Upp Slots Evolved 10 | . . . 2 2 2 2 . . . . 2 . Power 1 | . . . . . . . . . . . 1 . Propulsion 2 | . . . . 1 . 1 . . . . . . Utility 5 | . . . 2 . 2 1 . . . . . . Weapon 2 | . . . . 1 . . . . . . 1 . Parts Attached 215 | 6 19 9 31 36 6 12 10 25 5 24 31 1 Power 19 | 1 3 1 3 4 . . 1 1 . 2 3 . Engine 9 | 1 1 1 3 3 . . . . . . . . Core 6 | . 2 . . 1 . . 1 . . 1 1 . Reactor 4 | . . . . . . . . 1 . 1 2 . Propulsion 50 | 2 4 2 10 12 2 2 1 1 1 4 9 . Treads 44 | 2 2 2 8 12 2 2 1 1 1 4 7 . Leg . | . . . . . . . . . . . . . Wheel 4 | . 2 . 2 . . . . . . . . . Hover 2 | . . . . . . . . . . . 2 . Flight . | . . . . . . . . . . . . . Utility 80 | 1 6 1 8 11 4 6 6 11 3 12 10 1 Device 35 | . 4 . 1 3 2 1 5 8 2 4 4 1 Storage 10 | 1 1 . 2 1 . . . 1 . 3 1 . Processor 7 | . 1 1 1 1 . 2 . . . . 1 . Hackware 4 | . . . 1 1 1 . . . . . 1 . Protection 24 | . . . 3 5 1 3 1 2 1 5 3 . Artifact . | . . . . . . . . . . . . . Weapon 66 | 2 6 5 10 9 . 4 2 12 1 6 9 . Energy Gun 43 | 2 . . 8 8 . 3 2 8 1 6 5 . Energy Cannon 10 | . 4 3 1 . . . . . . . 2 . Ballistic Gun 1 | . 1 . . . . . . . . . . . Ballistic Cannon . | . . . . . . . . . . . . . Launcher 10 | . 1 2 1 1 . 1 . 4 . . . . Special Weapon . | . . . . . . . . . . . . . Impact Weapon 2 | . . . . . . . . . . . 2 . Slashing Weapon . | . . . . . . . . . . . . . Piercing Weapon . | . . . . . . . . . . . . . Special Melee Weapon . | . . . . . . . . . . . . . Unidentified Prototypes 11 | . . . 1 . . 1 . 4 . 3 2 . Corrupted Parts 7 | . . . 1 2 . . . 1 . . 3 . System Corruption 26 | . . . 1 8 . . . 4 . . 13 . Parts Lost 89 | . 7 . 3 23 2 3 1 1 3 18 27 1 Power 10 | . 2 . 1 2 . . . . . 2 3 . Propulsion 26 | . 2 . 1 7 2 . . . 1 5 7 1 Utility 28 | . . . . 7 . 2 1 1 1 7 9 . Weapon 25 | . 3 . 1 7 . 1 . . 1 4 8 . Highest Loss Streak 21 | . 3 . 2 8 1 2 1 1 3 13 21 1 Average Slot Usage (%) 91 | . 96 99 98 97 99 97 92 86 91 92 58 19 Engine 4 | . 9 1 11 8 7 6 2 . . . . . Core 2 | . 3 12 . . . . 3 4 . . 4 . Treads 20 | . 18 15 16 25 23 26 26 20 20 20 10 . Wheel 2 | . 8 12 4 1 . . . . . . . . Device 10 | . 10 9 9 9 13 13 13 10 11 14 6 3 Storage 8 | . 14 14 11 9 7 6 6 7 13 10 . . Processor 9 | . 3 4 12 7 7 12 13 13 13 13 12 . Hackware 1 | . . . 5 4 1 . . . . . . 5 Protection 5 | . . . 5 3 15 11 5 6 6 5 3 . Energy Gun 16 | . 13 . 16 27 23 19 20 19 20 19 4 . Energy Cannon 5 | . 11 27 5 . . . . . . . 5 . Naked Turns . | . . . . . . . . . . . . . Heaviest Build 129 | 14 34 37 92 103 112 118 121 129 129 125 66 9 Greatest Support 140 | 40 40 40 40 60 60 90 100 140 140 130 96 9 Greatest Overweight (x) 10 | 4 2 2 10 10 1 1 1 2 . 1 1 . Average Overweight (x) 1 | . . 1 3 2 1 1 1 . . . . . Largest Inventory Capacity 25 | 8 15 15 25 25 25 25 25 25 25 25 5 5 Average Capacity 20 | 7 14 15 19 25 25 25 25 25 25 23 5 5 Most Carried 25 | 4 15 15 25 25 25 25 25 25 25 25 5 5 Average Carried 19 | 2 12 14 18 21 24 24 24 24 24 23 3 4 Final Capacity 25 | 8 15 15 25 25 25 25 25 25 25 5 5 5 Final Carried 25 | 4 15 15 25 24 25 25 25 25 25 5 4 5 Class Distribution -------------------- 48% | Scavenger-Gunner 27% | Mutant 13% | Scavenger-Mutant 8% | Scavenger-Tank Dominant Class ---------------- Mutant | -10/Materials Mutant | -10/Mines Scavenger-Mutant | -9/Materials Scavenger-Gunner | -8/Materials Scavenger-Tank | -7/Factory Scavenger-Gunner | -6/Factory Scavenger-Gunner | -6/Extension Scavenger-Gunner | -6/Cetus Scavenger-Gunner | -6/Archives Scavenger-Gunner | -6/Hub_04(d) Scavenger-Mutant | -5/Factory Mutant | -5/Upper Caves Resources | -11 -10 -10 -9 -8 -7 -6 -6 -6 -6 -6 -5 -5 ----------- Run | Scr Mat Min Mat Mat Fac Fac Ext Cet Arc Hub Fac Upp Matter Collected 2773 | 231 216 148 298 501 211 11 233 416 40 214 198 56 Remotely . | . . . . . . . . . . . . . Salvage Created 8114 | . 802 302 1076 1464 545 149 725 757 324 1293 677 . Parts 386 | . 45 23 81 70 22 7 25 36 6 39 32 . Haulers Intercepted 8 | . . . 4 4 . . . . . . . . Recyclers Shooed 5 | . . . . 3 1 . . . . 1 . . Parts Field Recycled . | . . . . . . . . . . . . . Retrieved Matter . | . . . . . . . . . . . . . Parts Self-Destructed . | . . . . . . . . . . . . . Prevented 2 | . . . . . . . . . . . . 2 Kills | -11 -10 -10 -9 -8 -7 -6 -6 -6 -6 -6 -5 -5 ------- Run | Scr Mat Min Mat Mat Fac Fac Ext Cet Arc Hub Fac Upp Combat Hostiles Destroyed 167 | . 19 15 22 28 10 5 10 22 4 22 10 . Guns 94 | . 7 . 9 22 9 2 7 12 3 20 3 . Cannons 31 | . 10 9 9 . . . . . . . 3 . AOE 26 | . 1 6 4 3 . 2 . 9 . . 1 . Classes Destroyed 18 | . 5 2 3 4 1 . 1 . . . 2 . Worker 3 | . 1 . 1 1 . . . . . . . . Builder 1 | . . . . 1 . . . . . . . . Tunneler 1 | . . . . 1 . . . . . . . . Hauler 8 | . . . 4 4 . . . . . . . . Recycler 3 | . . . 1 . . . 1 . . 1 . . Operator 4 | . 3 . . 1 . . . . . . . . Watcher 2 | . 1 . 1 . . . . . . . . . Swarmer 44 | . 3 9 6 7 . 3 . 13 . 3 . . Grunt 69 | . 16 4 10 14 7 . 2 7 . 9 . . Brawler 4 | . . . . 3 . . . . . 1 . . Duelist 2 | . . . 1 1 . . . . . . . . Sentry 26 | . . 1 5 2 2 2 6 . 4 2 2 . Specialist 1 | . . . . . . . . . . . 1 . Hunter 5 | . . . . 1 . . . . . 3 1 . Programmer 10 | . . . . . 1 . 1 . . 3 5 . Heavy 1 | . . . . . . . . . . . 1 . Behemoth 2 | . . . . . . . 1 . . 1 . . Cetus Guard 2 | . . . . . . . . 2 . . . . Assembled 1 | . . 1 . . . . . . . . . . Best Kill Streak 14 | . 8 5 14 6 3 3 4 6 2 5 5 . Combat Bots Only 9 | . 7 5 9 5 3 3 4 6 2 5 5 . Max Kills in Single Turn 3 | . 2 3 2 3 1 1 1 2 1 3 1 . Gunslinging 2 | . 1 . 1 1 . . . 1 . 2 . . Exploded 3 | . 1 3 2 2 . 1 . 2 . . 1 . Melee . | . . . . . . . . . . . . . Uniques/NPCs Destroyed . | . . . . . . . . . . . . . Combat | -11 -10 -10 -9 -8 -7 -6 -6 -6 -6 -6 -5 -5 -------- Run | Scr Mat Min Mat Mat Fac Fac Ext Cet Arc Hub Fac Upp Damage Taken 15343 | . 999 255 704 2753 392 472 575 969 969 3343 3657 255 Core 2285 | . 160 64 88 261 18 18 51 80 87 452 769 237 Absorbed by Shields 76 | . . . . . . . 76 . . . . . Reduced by Siege Mode 45 | . . . . . . . . 26 12 7 . . Core Remaining (%) 59 | 100 . 10 78 52 97 . . . . 19 . . Volleys Fired 433 | . 84 15 49 76 20 12 32 41 14 54 36 . Largest 4 | . 2 2 2 3 3 3 3 3 3 3 4 . Hottest 262 | . 136 136 136 195 177 205 224 225 225 236 262 . Shots Fired 1010 | . 152 25 82 206 60 27 94 96 38 154 76 . Gun 825 | . 82 . 50 204 60 23 94 83 38 154 37 . Cannon 156 | . 67 21 29 . . . . . . . 39 . Launcher 29 | . 3 4 3 2 . 4 . 13 . . . . Special . | . . . . . . . . . . . . . Kinetic 17 | . 17 . . . . . . . . . . . Thermal 864 | . 114 21 54 178 60 23 94 83 38 154 45 . Explosive 29 | . 3 4 3 2 . 4 . 13 . . . . Electromagnetic 100 | . 18 . 25 26 . . . . . . 31 . Robot Hit Streak 40 | . 9 6 9 13 15 11 38 40 12 34 14 . Robot Miss Streak 7 | . 4 2 3 7 1 1 1 2 1 3 2 . Penetration Max . | . . . . . . . . . . . . . Secondary Targets 24 | . 2 . 2 8 . . 1 6 1 4 . . Max Gunslinging Chain 2 | . 1 . 1 2 . . 1 1 1 2 . . Shots Hit Robots 718 | . 88 11 58 138 46 19 70 69 33 124 61 1 Core Hits 393 | . 36 18 38 64 24 11 27 48 13 85 29 . Critical Kills 1 | . . . . . . . . . . . 1 . Critical Parts Destroyed 1 | . 1 . . . . . . . . . . . Critical Strikes 34 | . 2 . 2 6 3 . 2 5 3 6 5 . Burn 30 | . 1 . 2 6 3 . 2 5 3 6 2 . Meltdown 1 | . . . . . . . . . . . 1 . Destroy 1 | . 1 . . . . . . . . . . . Corrupt 2 | . . . . . . . . . . . 2 . Melee Attacks 3 | . . . . . . . . . . . . 3 Impact 3 | . . . . . . . . . . . . 3 Slashing . | . . . . . . . . . . . . . Piercing . | . . . . . . . . . . . . . Sneak Attacks . | . . . . . . . . . . . . . Combat Hostiles . | . . . . . . . . . . . . . Follow-up Attacks . | . . . . . . . . . . . . . Damage Inflicted 16530 | . 1653 703 1436 2512 746 607 1500 2166 734 2860 1589 24 Guns 11744 | . 659 . 580 2263 746 334 1500 1395 734 2852 681 . Cannons 2320 | . 783 224 474 . . . . . . . 839 . Explosions 2408 | . 207 479 382 229 . 273 . 771 . . 67 . Melee 24 | . . . . . . . . . . . . 24 Ramming 34 | . 4 . . 20 . . . . . 8 2 . Kinetic 88 | . 88 . . . . . . . . . . . Thermal 13039 | . 1240 381 776 1887 746 334 1500 1395 734 2852 1194 . Explosive 2036 | . 151 322 362 157 . 273 . 771 . . . . Electromagnetic 1309 | . 170 . 298 448 . . . . . . 393 . Impact 24 | . . . . . . . . . . . . 24 Slashing . | . . . . . . . . . . . . . Piercing . | . . . . . . . . . . . . . Highest Corruption 22 | . . . 1 22 3 . . 4 . 15 18 18 Average Corruption 9 | . . . 1 20 2 . . 3 . 4 3 12 Corruption Purged 15 | . . . . . . . . 4 . 2 . 9 Effects 119 | . . . 4 72 8 . . 9 . 8 13 5 Message Errors 32 | . . . 3 16 3 . . 1 . 4 3 2 Matter Fused 33 | . . . . 21 2 . . 3 . 1 4 2 Heat Flow Errors 7 | . . . . 4 . . . 1 . 1 1 . Energy Discharges 13 | . . . 1 7 2 . . 1 . 1 1 . Data Loss (minor) 16 | . . . . 10 1 . . 2 . . 2 1 Data Loss (major) 2 | . . . . 2 . . . . . . . . Misfires 4 | . . . . 4 . . . . . . . . Alerts 1 | . . . . 1 . . . . . . . . Misdirections 2 | . . . . 2 . . . . . . . . Weapon Failures 9 | . . . . 5 . . . 1 . 1 2 . Overload Shots . | . . . . . . . . . . . . . Overflow Damage 171 | . 33 65 41 . . . . 32 . . . . Projectiles 33 | . 33 . . . . . . . . . . . Explosions 138 | . . 65 41 . . . . 32 . . . . Melee . | . . . . . . . . . . . . . Knockbacks 1 | . . . . . . . . . . . . 1 Impact 1 | . . . . . . . . . . . . 1 Kinetic . | . . . . . . . . . . . . . Secondary . | . . . . . . . . . . . . . Self-Inflicted Damage 331 | . 28 75 49 47 . . . 25 . 107 . . Shots 9 | . 2 3 1 1 . . . 1 . 1 . . Rammed 10 | . 1 . . 5 . . . . . 3 1 . Targets Rammed 10 | . 1 . . 5 . . . . . 3 1 . Kicked . | . . . . . . . . . . . . . Crushed . | . . . . . . . . . . . . . Highest Temperature 534 | . 296 192 342 534 456 129 282 330 222 304 401 . Average Temperature 118 | . 74 59 73 198 134 47 81 112 80 75 144 . Received Heat Transfer 3804 | . 507 36 177 1260 126 66 200 301 153 783 156 39 Effects 32 | . . . . 26 2 . 1 1 . . 2 . Shutdowns 6 | . . . . 5 . . . . . . 1 . Energy Bleed 6 | . . . . 3 . . 1 1 . . 1 . Interference 10 | . . . . 10 . . . . . . . . Matter Decay 4 | . . . . 3 1 . . . . . . . Short Circuit 2 | . . . . 2 . . . . . . . . Damage (minor) 4 | . . . . 3 1 . . . . . . . Siege Activations 5 | . . . . . . . . 1 1 3 . . Total Turns 91 | . . . . . . . . 34 21 36 . . Longest Duration 34 | . . . . . . . . 34 21 19 . . Robots Corrupted 1 | . . . . . . . . . . . 1 . Combat Hostiles 1 | . . . . . . . . . . . 1 . Parts Fried 8 | . . . . 2 . . . 1 . . 5 . Impact Corruptions . | . . . . . . . . . . . . . Robots Melted 15 | . 1 . . 3 1 1 3 1 1 2 2 . Combat Hostiles 15 | . 1 . . 3 1 1 3 1 1 2 2 . Parts Melted 91 | . 5 3 1 15 7 2 11 7 7 19 14 . Heat Transferred 27751 | . 2764 607 1628 4921 1924 755 3081 3044 1714 5610 1703 . Parts Sabotaged . | . . . . . . . . . . . . . Parts Stolen . | . . . . . . . . . . . . . Parts Stripped . | . . . . . . . . . . . . . Power Chain Reactions 6 | . 1 . 2 2 . . . . . . 1 . Missiles Intercepted . | . . . . . . . . . . . . . Alert | -11 -10 -10 -9 -8 -7 -6 -6 -6 -6 -6 -5 -5 ------- Run | Scr Mat Min Mat Mat Fac Fac Ext Cet Arc Hub Fac Upp Peak Influence 1072 | . 270 230 374 419 295 153 629 1072 479 860 420 . Initial 389 | . . 105 45 75 184 138 74 352 389 97 320 . Average 257 | . 95 133 222 250 229 46 229 634 439 456 283 . Maximum Alert Level 3 | . 1 1 1 2 1 . 2 3 2 3 2 . Low Security (%) 41 | 100 79 58 44 30 37 100 48 . . 18 13 . Level 1 37 | . 20 41 55 62 62 . 21 10 18 16 79 . Level 2 17 | . . . . 7 . . 30 55 81 53 6 . Level 3 3 | . . . . . . . . 34 . 11 . . Level 4 . | . . . . . . . . . . . . . Level 5 . | . . . . . . . . . . . . . High Security . | . . . . . . . . . . . . . Max Security . | . . . . . . . . . . . . . Squads Dispatched 38 | . 6 . 2 6 4 1 4 2 . 6 7 . Investigation 11 | . 3 . . 1 2 . 2 2 . . 1 . Extermination 4 | . . . . . 1 . . . . 1 2 . Reinforcement 16 | . 3 . 2 3 1 . 1 . . 2 4 . Assault 2 | . . . . . . . 1 . . 1 . . Garrison 5 | . . . . 2 . 1 . . . 2 . . Intercept . | . . . . . . . . . . . . . Construction Impeded . | . . . . . . . . . . . . . Haulers Reinforced . | . . . . . . . . . . . . . Active Scanning Responses . | . . . . . . . . . . . . . Cargo Convoy Interrupts 1 | . . . . . . . . . . . 1 . Stealth | -11 -10 -10 -9 -8 -7 -6 -6 -6 -6 -6 -5 -5 --------- Run | Scr Mat Min Mat Mat Fac Fac Ext Cet Arc Hub Fac Upp Distress Signals 18 | . 3 . 2 6 . . . 2 . 4 1 . Communications Jammed . | . . . . . . . . . . . . . Distress Signals . | . . . . . . . . . . . . . Times Spotted 324 | . 40 17 37 46 13 6 35 38 9 48 31 4 Peak Tracking Total 11 | . 6 3 6 6 5 3 6 9 2 11 9 3 Tactical Retreats 18 | . 2 . 1 3 . . 2 1 . 4 4 1 Traps | -11 -10 -10 -9 -8 -7 -6 -6 -6 -6 -6 -5 -5 ------- Run | Scr Mat Min Mat Mat Fac Fac Ext Cet Arc Hub Fac Upp Traps Triggered 13 | . 1 . 4 . . . 3 . . 3 2 . Indirectly . | . . . . . . . . . . . . . Trap Hack Attempts . | . . . . . . . . . . . . . Triggered . | . . . . . . . . . . . . . Disarmed . | . . . . . . . . . . . . . Reprogrammed . | . . . . . . . . . . . . . Reused . | . . . . . . . . . . . . . Traps Extracted . | . . . . . . . . . . . . . Installed . | . . . . . . . . . . . . . Triggered 2 | . . . . . . . . . . . 1 1 Machines | -11 -10 -10 -9 -8 -7 -6 -6 -6 -6 -6 -5 -5 ---------- Run | Scr Mat Min Mat Mat Fac Fac Ext Cet Arc Hub Fac Upp Machines Disabled 29 | . 1 6 2 4 . . 1 2 . 13 . . Max in Single Turn 12 | . 1 4 1 3 . . . 1 . 12 . . Garrison Access 1 | . . . . 1 . . . . . . . . Network Hub 1 | . . . . . . . . . . 1 . . Machines Sabotaged . | . . . . . . . . . . . . . Garrisons Compromised 1 | . . . . . . . . . . . 1 . Overloaded Fab Kills . | . . . . . . . . . . . . . Hacking | -11 -10 -10 -9 -8 -7 -6 -6 -6 -6 -6 -5 -5 --------- Run | Scr Mat Min Mat Mat Fac Fac Ext Cet Arc Hub Fac Upp Machines Accessed 39 | . 6 . 5 5 2 4 7 3 1 3 3 . Terminals 29 | . 4 . 5 2 . 3 7 3 . 3 2 . Fabricators 1 | . . . . . 1 . . . . . . . Repair Stations 2 | . 1 . . . . . . . . . 1 . Recycling Units 2 | . 1 . . . . 1 . . . . . . Scanalyzers 2 | . . . . 2 . . . . . . . . Garrison Access 2 | . . . . 1 1 . . . . . . . Total Hacks 117 | . 20 . 9 16 4 7 17 7 25 6 6 . Successful 68 | . 10 . 3 11 2 4 7 2 25 2 2 . Failed 49 | . 10 . 6 5 2 3 10 5 . 4 4 . Catastrophic 15 | . 2 . . 1 1 1 1 5 . 2 2 . Database Lockouts . | . . . . . . . . . . . . . Manual 26 | . 14 . 3 1 1 . 1 1 1 1 3 . Terminals 69 | . 16 . 9 5 . 6 17 7 . 6 3 . Fabricators 2 | . . . . . 2 . . . . . . . Repair Stations 5 | . 2 . . . . . . . . . 3 . Recycling Units 3 | . 2 . . . . 1 . . . . . . Scanalyzers 9 | . . . . 9 . . . . . . . . Garrison Access 4 | . . . . 2 2 . . . . . . . Terminal Hacks 43 | . 3 . 2 1 . 3 6 2 25 1 . . Record 28 | . . . . . . . 1 2 25 . . . Part Schematic 1 | . . . . . . . 1 . . . . . Prototype ID Bank 2 | . 1 . . . . 1 . . . . . . Open Door 4 | . . . . . . 1 3 . . . . . Level Access Points 1 | . . . . 1 . . . . . . . . Branch Access Points 1 | . . . 1 . . . . . . . . . Unreport Threat 3 | . 1 . 1 . . 1 . . . . . . Locate Traps 1 | . . . . . . . 1 . . . . . Recall Reinforcements 1 | . . . . . . . . . . 1 . . Hauler Manifests 1 | . 1 . . . . . . . . . . . Fabricator Hacks 2 | . . . . . 2 . . . . . . . Load Schematic 1 | . . . . . 1 . . . . . . . Build 1 | . . . . . 1 . . . . . . . Repair Station Hacks 4 | . 2 . . . . . . . . . 2 . Scan Component 2 | . 1 . . . . . . . . . 1 . Repair 2 | . 1 . . . . . . . . . 1 . Recycling Unit Hacks 2 | . 1 . . . . 1 . . . . . . Report Inventory 2 | . 1 . . . . 1 . . . . . . Scanalyzer 9 | . . . . 9 . . . . . . . . Insert Component 5 | . . . . 5 . . . . . . . . Analyze 4 | . . . . 4 . . . . . . . . Garrison Access Hacks . | . . . . . . . . . . . . . Unauthorized Hacks 8 | . 4 . 1 1 . . 1 . . 1 . . Terminals 6 | . 3 . 1 . . . 1 . . 1 . . Assimilate 1 | . . . . . . . 1 . . . . . Botnet 4 | . 2 . 1 . . . . . . 1 . . Operators 1 | . 1 . . . . . . . . . . . Fabricators . | . . . . . . . . . . . . . Repair Stations . | . . . . . . . . . . . . . Recycling Units 1 | . 1 . . . . . . . . . . . Tunnel 1 | . 1 . . . . . . . . . . . Scanalyzers . | . . . . . . . . . . . . . Garrison Access 1 | . . . . 1 . . . . . . . . Jam 1 | . . . . 1 . . . . . . . . Data Cores Recovered . | . . . . . . . . . . . . . Used . | . . . . . . . . . . . . . Hacking Detections 32 | . 5 . 5 5 2 3 5 3 . 2 2 . Full Trace Events 7 | . 1 . . . 2 . 2 2 . . . . Feedback Events . | . . . . . . . . . . . . . Feedback Blocked . | . . . . . . . . . . . . . Robot Schematics Acquired . | . . . . . . . . . . . . . Robots Built . | . . . . . . . . . . . . . Authchips . | . . . . . . . . . . . . . Time . | . . . . . . . . . . . . . Total Robot Build Rating . | . . . . . . . . . . . . . Part Schematics Acquired 5 | . . . . 4 . . 1 . . . . . Parts Built 2 | . . . . . 2 . . . . . . . Authchips . | . . . . . . . . . . . . . Time 36 | . . . . . 36 . . . . . . . Total Part Build Rating 6 | . . . . . 6 . . . . . . . Parts Repaired 2 | . 1 . . . . . . . . . 1 . Time 42 | . 16 . . . . . . . . . 26 . Parts Recycled . | . . . . . . . . . . . . . Recycled Matter . | . . . . . . . . . . . . . Retrieved Matter . | . . . . . . . . . . . . . Retrieved Components . | . . . . . . . . . . . . . Parts Scanalyzed 4 | . . . . 4 . . . . . . . . Part Schematics Acquired 4 | . . . . 4 . . . . . . . . Parts Damaged . | . . . . . . . . . . . . . Bothacking | -11 -10 -10 -9 -8 -7 -6 -6 -6 -6 -6 -5 -5 ------------ Run | Scr Mat Min Mat Mat Fac Fac Ext Cet Arc Hub Fac Upp Used RIF Installer . | . . . . . . . . . . . . . Robots Hacked . | . . . . . . . . . . . . . Non-combat . | . . . . . . . . . . . . . Combat . | . . . . . . . . . . . . . Robot Hacks Applied . | . . . . . . . . . . . . . Relay Couplers Released 3 | . . . . . 3 . . . . . . . Programmers 3 | . . . . . 3 . . . . . . . Fabnet Peak Effective % . | . . . . . . . . . . . . . Robots Rewired 13 | . . . . . . . 13 . . . . . Allies Hacked . | . . . . . . . . . . . . . Hacks Repelled . | . . . . . . . . . . . . . Allies | -11 -10 -10 -9 -8 -7 -6 -6 -6 -6 -6 -5 -5 -------- Run | Scr Mat Min Mat Mat Fac Fac Ext Cet Arc Hub Fac Upp Total Allies 24 | . . . . . . . 19 5 . . . . Largest Group 11 | . . . . . . . 11 9 1 . . . Highest-Rated Group 475 | . . . . . . . 440 475 89 . . . Highest-Rated Ally 159 | . . . . . . . 159 159 89 . . . Total Orders . | . . . . . . . . . . . . . Ally Attacks 271 | . . . . . . . 146 125 . . . . Total Damage 6372 | . . . . . . . 3061 3311 . . . . Kills 38 | . . . . . . . 22 16 . . . . Allies Corrupted . | . . . . . . . . . . . . . Allies Melted . | . . . . . . . . . . . . . Intel | -11 -10 -10 -9 -8 -7 -6 -6 -6 -6 -6 -5 -5 ------- Run | Scr Mat Min Mat Mat Fac Fac Ext Cet Arc Hub Fac Upp Robot Analysis Total . | . . . . . . . . . . . . . Derelict Logs Recovered 4 | . . 3 . . . . . . . . . 1 Drone Launches . | . . . . . . . . . . . . . Drone Recoveries . | . . . . . . . . . . . . . Exploration | -11 -10 -10 -9 -8 -7 -6 -6 -6 -6 -6 -5 -5 ------------- Run | Scr Mat Min Mat Mat Fac Fac Ext Cet Arc Hub Fac Upp Turns Passed 12344 | 77 1140 1287 1308 1718 794 706 1847 989 454 845 960 219 Spaces Moved 5276 | 44 580 605 570 561 280 266 624 384 210 347 589 216 Core 85 | 18 . . 1 . . . . . . . 18 48 Treads 3554 | 26 176 85 341 458 280 266 624 384 210 347 357 . Legs . | . . . . . . . . . . . . . Wheels 1255 | . 404 520 228 103 . . . . . . . . Hover 382 | . . . . . . . . . . . 214 168 Flight . | . . . . . . . . . . . . . Fastest Speed 40 | 50 115 130 125 215 240 242 242 160 160 163 40 40 Average Speed 176 | 147 135 134 183 236 240 242 242 168 162 165 131 42 Slowest Speed 550 | 250 240 240 550 243 240 242 242 320 163 250 245 50 Overloaded Moves . | . . . . . . . . . . . . . Propulsion Burnouts . | . . . . . . . . . . . . . Robots Hopped . | . . . . . . . . . . . . . Cave-ins Triggered . | . . . . . . . . . . . . . Exploration Rate (%) 48 | 3 70 99 54 44 7 5 75 78 98 33 18 43 Regions Visited 12 Branch Regions 6 Pre-discovered Areas 2 | . 1 1 . . . . . . . . . . Known Exits Taken 2 | . . 1 . 1 . . . . . . . . Unknown Exits Taken 10 | 1 1 . 1 . 1 1 1 1 1 1 1 . Scrap Searched 2 | . . 1 . . . . . . . . . 1 Spaces Dug 1 | . . . . . . . . . . . 1 . Terrain Destroyed 369 | . 39 55 30 13 . 26 . 27 . 161 18 . Melee . | . . . . . . . . . . . . . Projectile 4 | . . . . . . . . . . . 4 . AOE 365 | . 39 55 30 13 . 26 . 27 . 161 14 . Terrain Rammed . | . . . . . . . . . . . . . Walls Destroyed . | . . . . . . . . . . . . . Machines Disabled . | . . . . . . . . . . . . . Actions | -11 -10 -10 -9 -8 -7 -6 -6 -6 -6 -6 -5 -5 --------- Run | Scr Mat Min Mat Mat Fac Fac Ext Cet Arc Hub Fac Upp Total 7499 | 53 785 1056 755 788 363 311 899 657 296 495 702 339 Wait 1124 | . 72 405 53 68 35 . 72 174 59 39 33 114 Move 5264 | 43 579 604 569 560 279 265 623 383 209 346 588 216 Hop . | . . . . . . . . . . . . . Pick Up 168 | 4 21 10 31 30 13 9 10 13 6 11 9 1 Fast Attach 65 | 6 3 2 13 4 2 4 . 3 . 7 20 1 Attach 76 | . 7 1 7 24 4 5 1 3 4 10 10 . Detach 10 | . . . . . 1 1 . 2 . 2 2 2 Swap 74 | . 9 6 11 8 . 3 9 19 1 7 1 . Drop 135 | . 9 13 22 13 9 12 15 19 3 16 2 2 Fire 433 | . 84 15 49 76 20 12 32 41 14 54 36 . Melee 3 | . . . . . . . . . . . . 3 Ram 1 | . 1 . . . . . . . . . . . Kick . | . . . . . . . . . . . . . Crush 9 | . . . . 5 . . . . . 3 1 . Escape Stasis 7 | . . . . . . . 7 . . . . . Rewire 130 | . . . . . . . 130 . . . . . Trap . | . . . . . . . . . . . . . Miscellaneous . | . . . . . . . . . . . . . Route ------- -11/Scrapyard -10/Materials (discovered 2 exits: *Mat / [*Min]) -10/Mines (discovered 2 exits: *Mat x2) -9/Materials (discovered 2 exits: *Mat / Min) -8/Materials (discovered 3 exits: *Fac x3) -7/Factory (discovered 2 exits: *Fac / *Sto) -6/Factory -6/Extension (discovered 2 exits: *Fac / *Cet) -6/Cetus (discovered 3 exits: *Fac x2 / *Arc) -6/Archives (discovered 3 exits: *Fac / *Hub x2) -6/Hub_04(d) -5/Factory (discovered 2 exits: [*Fac] / [*Upp]) -5/Upper Caves (discovered 1 exit: Upp) History --------- Turn | Location | Event 28 | -11/Scrapyard | Discovered new exit (range 15) 78 | -11/Scrapyard | Entered Materials 310 | -10/Materials | Build established: Mutant 430 | -10/Materials | Lost 3 parts (1p1n1w) 675 | -10/Materials | Discovered new exit (range 10) 769 | -10/Materials | Core integrity fell below 50% 938 | -10/Materials | Destroyed 7 combat bots 1115 | -10/Materials | Discovered new exit (range 15) 1124 | -10/Materials | Repaired Particle Cannon? 1218 | -10/Materials | Entered Mines 1240 | -10/Mines | Met a Derelict bent on vengeance 1323 | -10/Mines | Assembled infested the area 1826 | -10/Mines | Discovered new exit (range 3) 1877 | -10/Mines | Core integrity fell below 20% 2100 | -10/Mines | Discovered new exit (range 6) 2115 | -10/Mines | Identified exit to Materials 2280 | -10/Mines | Learned Materials terminal intel 2307 | -10/Mines | Joined a pair of Derelicts in attacking an 0b10 outpost 2505 | -10/Mines | Entered Materials 2505 | -9/Materials | Evolved 2 slots: Utility x2 2506 | -9/Materials | Loaded intel: 12 terminal locations 2719 | -9/Materials | Destroyed 9 combat bots 2776 | -9/Materials | Discovered new exit (range 7) 2917 | -9/Materials | Identified exit to Mines 3090 | -9/Materials | Build established: Scavenger-Mutant 3813 | -9/Materials | Entered another Materials area 3813 | -8/Materials | Evolved 2 slots: Propulsion x1, Weapon x1 4067 | -8/Materials | Garrison activated, responded to threat 4161 | -8/Materials | Lost 8 parts (1p4n1u2w) 4182 | -8/Materials | System corruption reached 10% 4217 | -8/Materials | Lost 6 parts (1p3u2w) 4350 | -8/Materials | Lost 6 parts (3n2u1w) 4648 | -8/Materials | Identified exit to Factory 4726 | -8/Materials | Build established: Scavenger-Gunner 5531 | -8/Materials | Entered Factory 5531 | -7/Factory | Evolved 2 slots: Utility x2 5532 | -7/Factory | Identified exit to Storage 5815 | -7/Factory | Build established: Scavenger-Tank 6046 | -7/Factory | Discovered new exit (range 11) 6057 | -7/Factory | Fabricated Arm. Treads (x2) 6325 | -7/Factory | Entered another Factory area 6325 | -6/Factory | Evolved 2 slots: Propulsion x1, Utility x1 6704 | -6/Factory | Build established: Scavenger-Gunner 6951 | -6/Factory | Garrison activated, responded to threat 7021 | -6/Factory | Discovered new exit (range 6) 7031 | -6/Factory | Entered Extension 7212 | -6/Extension | Rescued a captive Derelict 7213 | -6/Extension | Rescued a captive Derelict 7789 | -6/Extension | Rescued A7 7870 | -6/Extension | Spotted B-75 Beast 7875 | -6/Extension | Spotted B-75 Beast 7889 | -6/Extension | Destroyed B-75 Beast 7898 | -6/Extension | Allies destroyed B-75 Beast 8174 | -6/Extension | Discovered new exit (range 16) 8177 | -6/Extension | Discovered new exit (range 15) 8399 | -6/Extension | Rescued a captive Derelict 8412 | -6/Extension | Rescued a captive Derelict 8419 | -6/Extension | Rescued a captive Derelict 8781 | -6/Extension | First assault squad dispatched 8878 | -6/Extension | Entered Cetus 8878 | -6/Cetus | Accompanied by 9 allies (A7) 8883 | -6/Cetus | Acquired a Cetus Manufacturing Module code from A7 8909 | -6/Cetus | Spotted Cetus Guard 8909 | -6/Cetus | Spotted Cetus Guard 8912 | -6/Cetus | Spotted Cetus Guard 8915 | -6/Cetus | Spotted Cetus Guard 8925 | -6/Cetus | Allies destroyed Cetus Guard 8929 | -6/Cetus | Allies destroyed Cetus Guard 8936 | -6/Cetus | Destroyed Cetus Guard 8939 | -6/Cetus | Allies destroyed Cetus Guard 8944 | -6/Cetus | Extracted ID and sensor layout for unrecognized location from A7's data core 9115 | -6/Cetus | Discovered new exit (range 16) 9369 | -6/Cetus | Started Cetus Manufacturing Module 9394 | -6/Cetus | Manufactured an Enhanced Grunt 9419 | -6/Cetus | Manufactured an Enhanced Grunt 9444 | -6/Cetus | Manufactured an Enhanced Grunt 9469 | -6/Cetus | Manufactured an Enhanced Grunt 9494 | -6/Cetus | Manufactured an Enhanced Grunt 9517 | -6/Cetus | Discovered new exit (range 16) 9560 | -6/Cetus | Spotted Cetus Guard 9560 | -6/Cetus | Spotted Cetus Guard 9563 | -6/Cetus | Spotted Cetus Guard 9574 | -6/Cetus | Allies destroyed Cetus Guard 9574 | -6/Cetus | Spotted Cetus Guard 9583 | -6/Cetus | Allies destroyed Cetus Guard 9584 | -6/Cetus | Allies destroyed Cetus Guard 9610 | -6/Cetus | Destroyed Cetus Guard 9625 | -6/Cetus | Discovered new exit (range 15) 9633 | -6/Cetus | Met Revision 17 9867 | -6/Cetus | Entered Archives 9867 | -6/Archives | Accompanied by 1 ally 9941 | -6/Archives | Unable to access archive contents 10005 | -6/Archives | Lost 3 parts (1n1u1w) 10011 | -6/Archives | Unable to access archive contents 10014 | -6/Archives | Discovered new exit (range 15) 10062 | -6/Archives | Found Prototype Device 10083 | -6/Archives | Unable to access archive contents 10089 | -6/Archives | Discovered new exit (range 13) 10143 | -6/Archives | Discovered new exit (range 16) 10156 | -6/Archives | Unable to access archive contents 10295 | -6/Archives | Unable to access archive contents 10321 | -6/Archives | Entered Hub_04(d) 10398 | -6/Hub_04(d) | Spotted B-75 Beast 10433 | -6/Hub_04(d) | Destroyed B-75 Beast 10493 | -6/Hub_04(d) | Disrupted transfer network 10565 | -6/Hub_04(d) | Network Hub disabled 10937 | -6/Hub_04(d) | Identified Exp. Thermal Shield 11021 | -6/Hub_04(d) | First assault squad dispatched 11035 | -6/Hub_04(d) | Garrison activated, responded to threat 11082 | -6/Hub_04(d) | Discovered new exit (range 16) 11083 | -6/Hub_04(d) | Core integrity fell below 50% 11111 | -6/Hub_04(d) | Spotted Lightning 11120 | -6/Hub_04(d) | Spotted Lightning 11132 | -6/Hub_04(d) | Spotted Lightning 11137 | -6/Hub_04(d) | System corruption reached 10% 11166 | -6/Hub_04(d) | Core integrity fell below 20% 11166 | -6/Hub_04(d) | Entered Factory 11166 | -5/Factory | Evolved 2 slots: Power x1, Weapon x1 11196 | -5/Factory | Lost 13 parts (1p4n6u2w) 11309 | -5/Factory | Spotted B-75 Beast 11420 | -5/Factory | Build established: Mutant 11563 | -5/Factory | Lost 3 parts (1n1u1w) 11758 | -5/Factory | Build established: Scavenger-Mutant 11895 | -5/Factory | Repaired Corrupted Wave Gun? 12015 | -5/Factory | Cargo convoy interrupted 12020 | -5/Factory | Core integrity fell below 50% 12053 | -5/Factory | Lost 21 parts (3p6n7u5w) 12119 | -5/Factory | Discovered new exit (range 15) 12125 | -5/Factory | Discovered new exit (range 9) 12126 | -5/Factory | System corruption reached 10% 12126 | -5/Factory | Entered Upper Caves 12276 | -5/Upper Caves | Identified exit to Upper Caves 12281 | -5/Upper Caves | Build established: Mutant 12312 | -5/Upper Caves | Attracted the attention of an 0b10 checkpoint 12314 | -5/Upper Caves | Core integrity fell below 20% 12344 | -5/Upper Caves | Spotted B-75 Beast 12345 | -5/Upper Caves | Destroyed by B-75 Beast with Magnetic Acceleration Cannon Last Messages --------------- 12240_ Extracted 2 energy. 12251_ System corrupted: Matter fused (-5). 12251_ Extracted 2 energy. 12260_ System Restoration Module purges 1% of system corruption (9%). 12260_ System Restoration Module expended. 12260_ Extracted 2 energy. 12260_ Acquired Adv. Energy Well. 12263_ M-22 Extractor reprogrammed Dirty Bomb Trap. 12265_ M-22 Extractor extracted Dirty Bomb Trap. 12267_ M-22 Extractor reprogrammed Fire Trap. 12269_ M-22 Extractor extracted Fire Trap. 12276_ Acquired derelict log, extracted data. 12280_ HAOAYBOAIT DFCY M3A0E/HCL% D,6XOH&K 12303_ Acquired 12 matter. 12310_ G-50 Soldier knocked back. 12312_ Y-64 Sentinel: "INTERCEPTING UNREGISTERED DERELICT." 12317_ Linear Gravjet destroyed. 12320_ Dropped Adv. Shield Generator. 12320_ Slug penetrates Wall. 12333_ System corrupted: Component data lost. Map ----- +----------------------------------------------------+ | ???????# ?????## #????????????????? | | ??????## ##??## #????????????????? | | ?????## ### #????????????????? | | ?????# #????????????????? | | ????????### #????????????????? | | ?????????## % ## # #????????????????? | | ????????## ######### #????????????????? | | ##### #####?##### #### #????????????????? | | ### ##?# #????????????????? | | # ## ### #???????????????? | | ???# ## ### ##???????????????? | | ???#???# ##?# #?????????????????? | | ???????## ####??# #?????????????????? | | ????????## ##?###? ##????????????????? | | ?????????# ## ### ### ##???????????????? | | ?????????# ?## ## #???????????????? | | ?????????# ??# #???????????????? | | ?????????# ??# #???????????????? | | ?????????####??# ##### #???????????????? | | ??????????????# ##???# #???????????????? | | ?????????????# ##????# #???????????????? | | ????????????# ## ######### #???????????????? | | ????????????## ####### #???????????????? | | ?????????????## ##?????# ########???????????????? | | ??????????????###???????#%#??????????????????????? | | ????????????????????????#@#??????????????????????? | | ???????????????????????#% #??????????????????????? | | ?????????????????????? % #??????????????????????? | | ????????????????????? ??????????????????????? | | ???????????????????? ??????????????????????? | | ??????????????????# BB ??????????????????????? | | ??????????????????# BB ??????????????????????? | | ?????????????????# #?????????????????????? | | ?????????????????# ## ###?????????????????????? | | ?????????????????# #?##????????????????????????? | | ?????????????????####????????????????????????????? | | ?????????????????????????????????????????????????? | | ?????????????????????????????????????????????????? | | ?????????????????????????????????????????????????? | | ?????????????????????????????????????????????????? | | ?????????????????????????????????????????????????? | | ?????????????????????????????????????????????????? | | ?????????????????????????????????????????????????? | | ?????????????????????????????????????????????????? | | ?????????????????????????????????????????????????? | | ?????????????????????????????????????????????????? | | ?????????????????????????????????????????????????? | | ?????????????????????????????????????????????????? | | ?????????????????????????????????????????????????? | | ?????????????????????????????????????????????????? | +----------------------------------------------------+ Best States ------------- Heat Dissipation 87 Energy Generation 36 Energy Capacity 880 Matter Stores 300 Matter Capacity 450 Sight Range 18 Terrain Scan Density 10 Jamming Range 12 Armor Coverage 1200 Resistance: TH 30 Evasion (%) 57 Targeting Accuracy 14 Target Analysis 6 Recoil Reduction 4 Offensive Hacking 10 Defensive Hacking 12 Item Schematics ----------------- Imp. Flight Unit | -8/Materials | Scanalyzed System Shield | -8/Materials | Scanalyzed Arm. Treads | -8/Materials | Scanalyzed Particle Charger | -8/Materials | Scanalyzed Imp. Particle Charger | -6/Extension | Hacked Robot Schematics ------------------ None Fabricated ------------ Arm. Treads | x2 | -7/Factory Alien Tech Used ----------------- None Achievements -------------- None Challenges ------------ None Game ------ Seed MetafieldSapperShifter Manual? 0 Play Time 02:09:47 Cumulative 29.2 hours Start 2022.01.02 @ 10:44:12 End 2022.01.06 @ 11:22:53 Sessions 3 Manual Loads 0 Difficulty Rogue Special Mode Winter2021/Sauler Game No. 20 Rogue 20 Adventurer 0 Explorer 0 Win Type - Total 0 Types 0/0/0/0/0/0/0/0/0 Lore% 31 Gallery% 35 Achievement% 29 Wizard Run 0 Options --------- ASCII 1 Keyboard 1 Movement Vi Keybinds 0 Fullscreen 1 Font 18/X11 Map View 76x50 Tactical HUD 1 Map Filters NONE Filters NONE Steam 1 RUN: 13ce98f8-0538-49d0-99d1-0096447359e5